bitfinex/quotes_SOLUSD_20250123
["timestamp","ask_amount","ask_price","bid_price","bid_amount"]
[1737648073214,0.03,250.09,249.89,1.0]
[1737648073409,0.03,250.09,249.85,21.49145604]
[1737648073603,30.05627461,250.08,249.79,1.0]
[1737648073819,20.0,250.05,249.8,312.0]
[1737648074003,23.776884,250.04,249.79,2.43789345]
[1737648074215,1.0,250.03,249.79,2.43789345]
[1737648074408,1.0,250.05,249.79,2.43789345]
[1737648074603,0.03,250.09,249.86,1.0]
[1737648074808,0.03,250.09,249.91,20.0]
[1737648075025,0.03,250.09,249.95,21.0]
[1737648075202,0.03,250.09,249.99,20.0]
[1737648075818,0.03,250.09,249.97,20.0]
[1737648076527,0.03,250.09,249.95,1.0]
[1737648076528,0.03,250.09,249.96,43.776884]
[1737648076903,0.03,250.09,249.97,312.0]
[1737648077108,0.03,250.09,250.0,20.0]
[1737648077723,0.03,250.09,249.98,20.0]
[1737648078233,0.03,250.09,249.89,1.0]
[1737648078419,0.03,250.09,249.9,23.776884]
[1737648078621,0.03,250.09,249.9,63.59377661]
[1737648078931,0.03,250.09,249.99,20.0]
[1737648079509,0.03,250.09,249.9,20.81689261]
[1737648079510,0.03,250.09,249.92,20.0]
[1737648079819,0.03,250.09,249.9,1.4895903]
[1737648080017,0.03,250.09,249.83,27.40658784]
[1737648080329,0.03,250.09,249.84,23.776884]
[1737648080528,0.03,250.09,249.89,20.0]
[1737648080726,23.806884,250.09,249.86,1.0]
[1737648080924,23.806884,250.09,249.85,16.005275]
[1737648080925,53.83315861,250.07,249.85,16.005275]
[1737648081110,4.9987,250.08,249.85,16.005275]
[1737648081111,23.776884,249.98,249.85,16.005275]
[1737648081316,23.776884,249.98,249.8,1.44272678]
[1737648081539,23.776884,250.02,249.81,20.0]
[1737648081833,23.776884,250.02,249.85,20.0]
[1737648082033,30.05627461,250.01,249.85,20.0]
[1737648082344,30.05627461,250.01,249.76,1.47131895]
[1737648082345,23.776884,249.93,249.76,1.47131895]
[1737648082540,30.05627461,249.91,249.72,7.4902]
[1737648082747,23.776884,249.88,249.69,16.013765]
[1737648083035,23.776884,249.86,249.7,1.52878549]
[1737648083338,30.05627461,250.01,249.72,20.0]
[1737648083639,30.05627461,250.01,249.83,20.0]
[1737648083809,30.05627461,250.03,249.84,23.776884]
[1737648084005,30.05627461,250.05,249.88,23.776884]
[1737648084210,7.7562,250.06,249.91,20.0]
[1737648084516,1.5263,250.06,249.91,20.0]
[1737648084721,0.03,250.09,249.95,20.0]
[1737648085034,0.03,250.09,249.99,20.0]
[1737648086038,0.03,250.09,249.91,2.45087651]
[1737648086329,30.08627461,250.09,249.92,23.776884]
[1737648086536,0.03,250.09,249.99,20.0]
[1737648086841,0.03,250.09,250.0,1.0]
[1737648087133,0.03,250.09,250.03,20.0]
[1737648087531,0.03,250.09,249.97,1.0]
[1737648088231,0.03,250.09,250.01,20.0]
[1737648088839,0.03,250.09,249.9,1.0]
[1737648089137,0.03,250.09,249.91,23.776884]
[1737648089352,0.03,250.09,249.9,1.0]
[1737648089525,0.03,250.09,249.91,23.776884]
[1737648089718,0.03,250.09,249.94,20.0]
[1737648090627,0.03,250.09,249.98,20.0]
[1737648091430,23.776884,250.06,249.9,1.46286764]
[1737648091620,23.776884,250.06,249.85,7.0348]
[1737648091621,30.05627461,250.05,249.85,7.0348]
[1737648091822,23.776884,249.98,249.81,1.063]
[1737648092042,23.776884,249.96,249.81,0.063]
[1737648092337,30.05627461,249.95,249.81,0.063]
[1737648092539,23.776884,249.94,249.81,0.063]
[1737648093544,30.05627461,249.87,249.81,0.063]
[1737648093744,30.05627461,249.93,249.81,0.063]
[1737648094128,30.05627461,249.97,249.81,0.063]
[1737648094331,30.05627461,249.99,249.81,0.063]
[1737648094531,30.05627461,249.97,249.81,0.063]
[1737648095428,30.05627461,249.99,249.82,20.0]
[1737648096042,23.776884,249.98,249.82,20.0]
[1737648096341,0.03,249.94,249.82,20.0]
[1737648096942,0.03,249.94,249.82,332.0]
[1737648098034,0.03,249.94,249.82,20.0]
[1737648098543,0.03,249.94,249.86,21.0]
[1737648099048,0.03,249.94,249.87,23.776884]
[1737648099243,0.03,249.94,249.9,20.0]
[1737648100041,0.03,249.94,249.81,1.48842094]
[1737648100443,23.776884,249.92,249.81,0.063]
[1737648100647,0.03,249.94,249.81,0.063]
[1737648101029,0.03,249.94,249.84,20.0]
[1737648101228,0.03,249.94,249.88,20.0]
[1737648102247,0.03,249.94,249.85,1.0]
[1737648102657,30.05627461,250.14,249.89,21.0]
[1737648102858,30.05627461,250.16,249.97,20.0]
[1737648103034,30.05627461,250.18,250.01,20.0]
[1737648103234,23.776884,250.17,250.01,20.0]
[1737648103529,30.05627461,250.18,249.98,1.0]
[1737648103928,30.05627461,250.18,249.93,23.776884]
[1737648103929,30.05627461,250.14,250.0,20.0]
[1737648104151,23.776884,250.11,250.0,20.0]
[1737648104329,23.776884,250.11,249.93,1.0]
[1737648104533,23.806884,250.09,249.95,332.0]
[1737648104835,0.03,250.09,249.95,333.0]
[1737648105030,0.03,250.09,249.96,20.0]
[1737648105227,23.806884,250.09,249.96,20.0]
[1737648105427,23.776884,250.03,249.87,2.46473155]
[1737648105643,23.776884,250.03,249.84,6.2323]
[1737648105644,23.776884,250.01,249.84,6.2323]
[1737648105846,30.05627461,249.96,249.81,0.063]
[1737648106025,23.776884,249.91,249.81,0.063]
[1737648106229,30.05627461,249.92,249.81,0.063]
[1737648106430,30.05627461,249.87,249.81,0.063]
[1737648106740,43.776884,249.8,249.7,0.063]
[1737648107050,23.776884,249.74,249.7,0.063]
[1737648107248,23.776884,249.72,249.7,0.063]
[1737648107557,23.776884,249.7,249.53,6.08245901]
[1737648107748,30.05627461,249.6,249.53,6.08245901]
[1737648107932,23.776884,249.57,249.53,6.08245901]
[1737648108133,30.05627461,249.62,249.53,6.08245901]
[1737648108450,30.05627461,249.6,249.53,6.08245901]
[1737648108656,30.05627461,249.6,249.39,37.49475408]
[1737648108657,23.776884,249.57,249.37,1.0]
[1737648108830,23.776884,249.57,249.32,7.062]
[1737648109237,30.05627461,249.62,249.36,1.0]
[1737648109439,30.05627461,249.62,249.56,0.063]
[1737648109647,42.42458088,249.68,249.56,0.063]
[1737648109964,12.36830627,249.65,249.53,20.0]
[1737648110133,30.05627461,249.7,249.53,20.0]
[1737648110338,23.776884,249.69,249.53,20.0]
[1737648110639,12.36830627,249.71,249.5,24.776884]
[1737648110640,23.776884,249.67,249.5,1.0]
[1737648110844,23.776884,249.65,249.45,1.063]
[1737648111052,23.776884,249.59,249.45,0.063]
[1737648111256,23.776884,249.57,249.45,0.063]
[1737648111468,23.776884,249.55,249.45,0.063]
[1737648111758,30.05627461,249.6,249.45,0.063]
[1737648111961,30.05627461,249.64,249.45,1.063]
[1737648112163,23.776884,249.63,249.45,1.063]
[1737648112544,36.14519027,249.63,249.46,20.0]
[1737648112837,12.36830627,249.63,249.46,20.0]
[1737648113044,30.05627461,249.64,249.46,20.0]
[1737648113244,42.42458088,249.66,249.46,20.0]
[1737648113451,30.05627461,249.64,249.46,20.0]
[1737648113645,23.776884,249.56,249.45,0.063]
[1737648113861,23.776884,249.54,249.45,0.063]
[1737648114079,23.776884,249.48,249.45,0.063]
[1737648114362,30.05627461,249.49,249.45,0.063]
[1737648114766,30.05627461,249.51,249.45,0.063]
[1737648114973,23.776884,249.46,249.45,0.063]
[1737648115178,23.776884,249.46,249.31,0.063]
[1737648116246,23.776884,249.44,249.31,0.063]
[1737648116444,30.05627461,249.47,249.31,0.063]
[1737648116645,36.23669432,249.49,249.31,0.063]
[1737648116855,6.18041971,249.49,249.31,24.839884]
[1737648117052,6.18041971,249.49,249.38,21.0]
[1737648117252,6.18041971,249.53,249.38,21.0]
[1737648117743,23.776884,249.52,249.31,1.063]
[1737648117945,23.776884,249.52,249.35,312.0]
[1737648118444,36.23669432,249.53,249.38,20.0]
[1737648118639,23.776884,249.52,249.38,20.0]
[1737648118851,23.776884,249.52,249.35,1.0]
[1737648119045,29.95730371,249.52,249.35,1.0]
[1737648119262,6.18041971,249.52,249.35,24.776884]
[1737648119662,6.18041971,249.52,249.38,20.0]
[1737648120049,6.18041971,249.52,249.35,1.0]
[1737648120457,6.18041971,249.52,249.38,1.0]
[1737648120660,8.23786018,249.54,249.52,20.0]
[1737648120966,6.15605535,249.57,249.52,20.0]
[1737648121346,6.15605535,249.57,249.49,1.0]
[1737648121753,6.15605535,249.57,249.56,20.0]
[1737648122169,4.021,249.69,249.56,1.0]
[1737648122468,0.03,249.7,249.56,1.0]
[1737648122672,23.806884,249.7,249.56,1.0]
[1737648122843,23.776884,249.66,249.56,1.0]
[1737648123047,0.03,249.7,249.46,20.0]
[1737648123048,30.05627461,249.62,249.46,20.0]
[1737648123355,23.776884,249.65,249.43,7.427]
[1737648123666,23.776884,249.65,249.47,20.0]
[1737648123858,23.776884,249.65,249.44,23.776884]
[1737648124258,23.776884,249.63,249.46,20.0]
[1737648124658,23.776884,249.65,249.47,20.0]
[1737648124853,23.776884,249.69,249.53,20.0]
[1737648125364,30.05627461,249.68,249.47,21.0]
[1737648125677,0.03,249.7,249.53,21.0]
[1737648126263,30.05627461,249.68,249.47,2.53246874]
[1737648126581,23.776884,249.65,249.47,2.53246874]
[1737648126761,0.03,249.7,249.51,20.0]
[1737648127154,0.03,249.7,249.51,21.0]
[1737648127363,0.03,249.7,249.55,21.0]
[1737648127685,0.03,249.7,249.59,20.0]
[1737648127975,0.03,249.7,249.59,21.0]
[1737648128352,0.03,249.7,249.63,21.0]
[1737648129053,0.03,249.7,249.67,21.0]
[1737648129574,0.03,249.7,249.67,1.0]
[1737648130579,0.03,249.7,249.63,20.0]
[1737648131489,0.03,249.7,249.63,21.0]
[1737648131858,0.03,249.7,249.63,333.0]
[1737648132070,0.03,249.7,249.67,1.0]
[1737648132383,23.776884,249.8,249.67,1.0]
[1737648133181,23.776884,249.8,249.68,1.0]
[1737648133385,23.776884,249.8,249.7,1.0]
[1737648133679,23.776884,249.8,249.68,1.0]
[1737648133855,23.776884,249.8,249.63,1.0]
[1737648134054,53.83315861,249.8,249.63,1.0]
[1737648134470,53.83315861,249.8,249.63,21.0]
[1737648134664,23.776884,249.8,249.63,21.0]
[1737648134851,0.03,249.7,249.63,22.52043138]
[1737648135057,0.03,249.7,249.64,24.776884]
[1737648135364,0.03,249.7,249.69,24.776884]
[1737648136795,6.4241,249.94,249.73,20.0]
[1737648137003,6.4241,249.94,249.74,23.776884]
[1737648137301,6.4241,249.94,249.77,20.0]
[1737648137501,30.05627461,249.92,249.77,20.0]
[1737648137673,6.4241,249.94,249.74,1.0]
[1737648137674,23.776884,249.89,249.74,1.0]
[1737648138083,30.05627461,249.92,249.74,1.0]
[1737648138276,6.4241,249.94,249.78,21.0]
[1737648138880,0.03,249.94,249.82,21.0]
[1737648139074,0.03,249.94,249.9,20.0]
[1737648139875,0.03,249.94,249.93,44.776884]
[1737648140275,0.03,250.09,249.93,1.0]
[1737648140600,0.03,250.09,249.89,1.0]
[1737648140601,0.03,250.09,250.06,20.0]
[1737648140803,0.03,250.09,250.06,21.0]
[1737648140977,0.03,250.09,250.06,20.0]
[1737648141168,0.03,250.09,249.99,1.0]
[1737648141475,0.03,250.09,249.99,44.776884]
[1737648141662,0.03,250.09,250.03,20.0]
[1737648141860,0.03,250.09,250.03,21.0]
[1737648142064,0.03,250.09,249.99,1.0]
[1737648142065,0.03,250.09,250.05,21.0]
[1737648142282,0.03,250.09,250.08,312.0]
[1737648142475,0.03,250.09,250.08,336.776884]
[1737648142670,37.82757844,250.14,250.12,23.776884]
[1737648142878,36.26831331,250.14,250.12,24.776884]
[1737648143083,36.26831331,250.14,250.12,1.0]
[1737648143279,36.26831331,250.14,250.03,21.0]
[1737648143483,36.26831331,250.14,250.08,2.48004912]
[1737648143681,36.26831331,250.14,250.12,23.776884]
[1737648143987,22.96897531,250.14,250.11,1.0]
[1737648144176,22.96897531,250.14,250.12,23.776884]
[1737648144378,61.46405083,250.17,250.15,20.0]
[1737648145077,39.49251309,250.17,250.16,24.776884]
[1737648145277,21.97153774,250.21,250.19,20.0]
[1737648145461,21.97153774,250.21,250.2,23.776884]
[1737648145792,3.9938,250.39,250.23,20.0]
[1737648146087,30.05627461,250.38,250.23,20.0]
[1737648146275,23.776884,250.37,250.21,20.0]
[1737648146473,23.776884,250.35,250.21,20.0]
[1737648146787,27.771284,250.35,250.21,20.0]
[1737648146993,30.05627461,250.36,250.21,20.0]
[1737648147177,34.05027461,250.38,250.21,20.0]
[1737648147373,30.05627461,250.36,250.21,20.0]
[1737648147578,30.05627461,250.36,250.2,20.0]
[1737648147876,30.05627461,250.38,250.21,20.0]
[1737648148289,30.05627461,250.37,250.2,20.0]
[1737648148486,23.776884,250.36,250.2,20.0]
[1737648148801,23.776884,250.36,250.19,20.0]
[1737648149298,34.05007461,250.39,250.2,23.776884]
[1737648149799,23.776884,250.38,250.2,23.776884]
[1737648150771,30.05627461,250.39,250.2,23.776884]
[1737648150772,1.5574,250.42,250.27,20.0]
[1737648150979,30.08627461,250.47,250.31,20.0]
[1737648151179,0.03,250.47,250.31,20.0]
[1737648151491,0.03,250.47,250.36,20.0]
[1737648152292,30.08627461,250.47,250.25,20.0]
[1737648152584,34.07877461,250.47,250.25,21.51353938]
[1737648152891,23.776884,250.46,250.34,20.0]
[1737648153078,0.03,250.47,250.38,20.0]
[1737648153275,0.03,250.47,250.42,20.0]
[1737648153903,0.03,250.47,250.44,20.0]
[1737648154500,0.03,250.47,250.39,1.47422571]
[1737648154685,0.03,250.47,250.44,20.0]
[1737648155289,0.03,250.47,250.37,23.776884]
[1737648155475,0.03,250.47,250.39,23.776884]
[1737648155675,0.03,250.47,250.42,20.0]
[1737648156186,0.03,250.47,250.42,312.0]
[1737648156385,0.03,250.47,250.45,20.0]
[1737648156599,0.03,250.47,250.31,3.01833688]
[1737648156980,0.03,250.47,250.31,1.47753688]
[1737648157182,0.03,250.47,250.33,20.0]
[1737648157382,0.03,250.47,250.29,1.499455]
[1737648157588,30.05627461,250.42,250.23,2.5324]
[1737648157983,30.05627461,250.42,250.25,20.0]
[1737648158788,30.05627461,250.42,250.31,0.063]
[1737648159128,30.05627461,250.46,250.31,0.063]
[1737648159296,0.03,250.47,250.31,20.063]
[1737648160594,30.08627461,250.47,250.31,0.063]
[1737648161322,0.03,250.47,250.33,20.0]
[1737648161618,0.03,250.47,250.37,20.0]
[1737648162315,0.03,250.47,250.41,20.0]
[1737648162700,0.03,250.47,250.31,1.063]
[1737648163099,0.03,250.47,250.41,20.0]
[1737648164912,0.03,250.47,250.36,1.5259624]
[1737648165210,0.03,250.47,250.41,20.0]
[1737648165595,30.05627461,250.52,250.41,20.0]
[1737648165907,30.05627461,250.54,250.31,1.60355556]
[1737648166109,30.05627461,250.52,250.32,23.776884]
[1737648166305,30.05627461,250.54,250.35,20.0]
[1737648166504,30.05627461,250.52,250.35,20.0]
[1737648167503,30.05627461,250.55,250.35,20.0]
[1737648167700,30.05627461,250.55,250.32,23.776884]
[1737648167701,30.05627461,250.57,250.39,20.0]
[1737648167997,30.05627461,250.68,250.47,20.0]
[1737648168397,30.05627461,250.68,250.44,1.6128]
[1737648168625,30.05627461,250.68,250.48,20.0]
[1737648168803,30.05627461,250.7,250.48,20.0]
[1737648169130,30.05627461,250.64,250.39,6.5807]
[1737648169420,30.05627461,250.58,250.39,6.5807]
[1737648169616,30.05627461,250.56,250.39,6.5807]
[1737648169819,1.6006,250.58,250.39,6.5807]
[1737648170001,36.28527461,250.65,250.39,7.5807]
[1737648170210,36.28527461,250.65,250.42,20.0]
[1737648170604,6.229,250.65,250.43,23.776884]
[1737648170810,1.6006,250.66,250.5,20.0]
[1737648171004,0.03,250.61,250.5,20.0]
[1737648171206,0.03,250.61,250.54,20.0]
[1737648171427,0.03,250.61,250.6,20.0]
[1737648171921,0.03,250.61,250.58,20.0]
[1737648172296,0.03,250.73,250.63,23.776884]
[1737648172495,0.03,250.73,250.6,23.776884]
[1737648172695,0.03,250.73,250.62,20.0]
[1737648173113,0.03,250.73,250.6,25.31149481]
[1737648173300,0.03,250.73,250.62,20.0]
[1737648174819,0.03,250.73,250.62,332.0]
[1737648175403,0.03,250.73,250.62,20.0]
[1737648175617,0.03,250.73,250.63,43.776884]
[1737648175813,0.03,250.73,250.63,20.0]
[1737648177506,0.03,250.73,250.69,20.0]
[1737648178302,0.03,250.73,250.72,312.0]
[1737648178902,0.03,250.73,250.69,20.0]
[1737648179215,0.03,250.73,250.7,20.0]
[1737648180431,0.03,250.73,250.71,23.776884]
[1737648180727,0.03,250.87,250.74,20.0]
[1737648181109,0.03,250.87,250.66,1.6511]
[1737648181308,0.03,250.87,250.6,2.9768046]
[1737648181523,30.08627461,250.87,250.59,9.6629]
[1737648181726,23.776884,250.86,250.59,9.6629]
[1737648181934,30.08627461,250.87,250.66,20.0]
[1737648182129,30.05627461,250.85,250.63,312.0]
[1737648182304,8.1254,250.86,250.59,7.53779767]
[1737648182508,30.05627461,250.83,250.59,7.53779767]
[1737648182825,30.05627461,250.83,250.62,20.0]
[1737648183027,23.776884,250.82,250.59,7.53779767]
[1737648183542,23.776884,250.74,250.5,7.5847]
[1737648183720,30.05627461,250.68,250.4,2.0]
[1737648183921,30.05627461,250.68,250.39,6.2292]
[1737648183922,38.01557461,250.72,250.44,1.0]
[1737648184226,38.01557461,250.72,250.46,1.0]
[1737648184422,38.01557461,250.8,250.57,23.776884]
[1737648184613,7.9593,250.8,250.64,20.0]
[1737648185225,7.9593,250.8,250.61,1.51845846]
[1737648185422,7.9593,250.8,250.67,20.0]
[1737648185644,30.05627461,250.78,250.67,20.0]
[1737648185939,30.05627461,250.78,250.59,21.57555103]
[1737648186108,7.9593,250.8,250.59,20.0]
[1737648186304,7.9593,250.8,250.63,20.0]
[1737648186732,1.6055,250.8,250.67,20.0]
[1737648186940,6.5611,250.87,250.67,20.0]
[1737648187119,6.5611,250.87,250.64,1.0]
[1737648187319,0.03,250.87,250.68,1.0]
[1737648187515,0.03,250.87,250.72,20.0]
[1737648188039,0.03,250.87,250.76,20.0]
[1737648188614,0.03,250.87,250.8,312.0]
[1737648189235,0.03,250.87,250.72,1.5758078]
[1737648189546,0.03,250.87,250.63,1.0]
[1737648189833,0.03,250.87,250.64,23.776884]
[1737648190047,0.03,250.87,250.62,1.0]
[1737648190248,23.776884,250.84,250.56,7.76501658]
[1737648190538,30.08627461,250.87,250.59,1.0]
[1737648190746,30.05627461,250.86,250.56,7.76501658]
[1737648190914,0.03,250.87,250.59,21.0]
[1737648191114,0.03,250.87,250.72,23.776884]
[1737648191430,0.03,250.87,250.69,1.0]
[1737648191816,0.03,250.87,250.77,20.0]
[1737648192221,0.03,250.87,250.81,312.0]
[1737648192723,0.03,250.87,250.75,20.0]
[1737648193335,0.03,250.87,250.76,20.0]
[1737648193539,0.03,250.87,250.76,43.776884]
[1737648194032,0.03,250.99,250.76,43.776884]
[1737648194033,0.03,250.99,250.81,20.0]
[1737648194235,0.03,250.99,250.9,20.0]
[1737648194415,16.70828054,251.18,250.98,20.0]
[1737648194609,7.9177,251.18,250.98,20.0]
[1737648194814,34.03757461,251.17,250.98,20.0]
[1737648195135,30.05627461,251.17,250.93,1.56978844]
[1737648195315,7.9177,251.18,250.9,1.5185]
[1737648195710,11.8989,251.18,251.03,312.0]
[1737648195936,11.8989,251.18,250.9,1.5185]
[1737648195937,0.03,250.99,250.9,1.5185]
[1737648196341,0.03,250.99,250.82,2.9768046]
[1737648196528,0.03,250.99,250.89,20.0]
[1737648197538,7.9177,251.18,250.97,1.0]
[1737648197716,30.08627461,251.25,250.97,1.0]
[1737648197717,0.03,251.25,251.1,20.0]
[1737648198240,30.05627461,251.23,250.98,6.96]
[1737648198445,4.0101,251.25,250.98,6.96]
[1737648198748,4.0101,251.25,251.02,20.0]
[1737648198950,0.03,251.25,251.1,20.0]
[1737648199318,30.05627461,251.23,251.07,312.0]
[1737648199517,30.05627461,251.16,250.89,7.8987]
[1737648199718,30.05627461,251.23,250.92,1.0]
[1737648199950,0.03,251.25,250.95,1.0]
[1737648200118,0.03,251.25,251.01,23.776884]
[1737648200323,0.03,251.25,251.07,23.776884]
[1737648200639,0.03,251.25,251.1,20.0]
[1737648201031,0.03,251.25,251.14,20.0]
[1737648201622,0.03,251.25,251.11,1.52409758]
[1737648201823,0.03,251.25,251.07,24.776884]
[1737648201824,0.03,251.25,251.16,20.0]
[1737648202028,0.03,251.25,251.13,21.0]
[1737648202346,1.0,251.43,251.14,1.0]
[1737648202517,30.05627461,251.41,251.24,312.0]
[1737648202718,3.9777,251.4,251.27,20.0]
[1737648202944,3.9777,251.4,251.14,1.0]
[1737648202945,36.08047461,251.33,251.1,8.2507]
[1737648203119,24.776884,251.26,250.98,7.6834]
[1737648203312,30.05627461,251.24,250.98,6.5202]
[1737648203615,23.776884,251.25,251.01,20.0]
[1737648203818,6.0242,251.33,251.01,20.0]
[1737648204124,6.0242,251.33,251.02,24.36450319]
[1737648204322,30.05627461,251.3,251.01,1.0]
[1737648204525,23.776884,251.29,251.02,23.776884]
[1737648204731,27.756484,251.29,251.02,23.776884]
[1737648205042,34.03557461,251.3,251.02,23.776884]
[1737648205241,23.776884,251.29,251.02,23.776884]
[1737648205444,23.776884,251.29,251.01,21.0]
[1737648205842,30.05627461,251.26,250.98,8.07715974]
[1737648206028,30.05627461,251.28,250.98,8.07715974]
[1737648206232,30.05627461,251.28,251.01,20.0]
[1737648206551,34.03557461,251.3,251.02,23.776884]
[1737648206723,31.05627461,251.27,250.98,8.07715974]
[1737648206920,30.05627461,251.27,250.98,8.07715974]
[1737648207249,23.776884,251.28,251.02,20.0]
[1737648208126,23.776884,251.26,250.98,8.07715974]
[1737648208640,30.05627461,251.29,251.01,20.0]
[1737648208835,30.05627461,251.31,251.02,23.776884]
[1737648209041,6.0242,251.33,251.21,20.0]
[1737648209348,10.003,251.33,251.21,20.0]
[1737648209526,6.0242,251.33,251.03,7.34130779]
[1737648209720,30.05627461,251.32,251.03,2.9768046]
[1737648210125,23.776884,251.3,251.07,20.0]
[1737648210347,6.0242,251.33,251.11,20.0]
[1737648210749,1.5003,251.38,251.19,20.0]
[1737648211123,1.5003,251.38,251.23,20.0]
[1737648211329,0.03,251.29,251.19,20.0]
[1737648212057,0.03,251.29,251.2,43.776884]
[1737648212425,0.03,251.29,251.28,312.0]
[1737648213650,0.03,251.29,251.19,1.51320691]
[1737648213858,0.03,251.29,251.19,20.0]
[1737648214653,0.03,251.29,251.2,23.776884]
[1737648214953,0.03,251.29,251.19,20.0]
[1737648215160,0.03,251.29,251.13,6.94]
[1737648215730,0.03,251.29,251.13,8.50033407]
[1737648215955,0.03,251.29,251.16,20.0]
[1737648216268,0.03,251.29,251.14,23.776884]
[1737648216454,0.03,251.29,251.16,20.0]
[1737648216678,0.03,251.29,251.21,20.0]
[1737648216948,0.03,251.29,251.13,8.50033407]
[1737648217145,0.03,251.29,251.16,20.0]
[1737648217352,0.03,251.29,251.17,20.0]
[1737648217730,1.5147,251.47,251.17,20.0]
[1737648218051,30.05627461,251.46,251.17,20.0]
[1737648218252,34.03307461,251.46,251.17,20.0]
[1737648219360,1.5147,251.47,251.17,43.776884]
[1737648219555,1.5147,251.47,251.21,20.0]
[1737648219857,1.5147,251.47,251.32,20.0]
[1737648220232,1.5147,251.47,251.25,6.0134]
[1737648220629,1.5147,251.47,251.29,20.0]
[1737648221038,1.5147,251.47,251.3,20.0]
[1737648221237,1.5147,251.47,251.28,20.0]
[1737648223130,1.5147,251.47,251.3,20.0]
[1737648223337,1.5147,251.47,251.41,20.0]
[1737648224037,1.5147,251.47,251.31,20.0]
[1737648224458,1.5147,251.47,251.26,6.263]
[1737648224664,1.5147,251.47,251.22,1.0]
[1737648224869,1.5147,251.47,251.28,20.0]
[1737648225369,1.5447,251.47,251.29,20.0]
[1737648226166,1.5447,251.47,251.28,6.263]
[1737648226339,1.5447,251.47,251.25,7.56780264]
[1737648227066,1.5447,251.47,251.29,312.0]
[1737648227275,23.776884,251.46,251.25,1.55440264]
[1737648227577,53.83315861,251.46,251.16,6.92]
[1737648227937,30.05627461,251.44,251.16,6.92]
[1737648228139,23.776884,251.4,251.13,15.918494]
[1737648228441,23.776884,251.4,251.12,20.0]
[1737648228765,23.776884,251.4,251.1,4.47976906]
[1737648228937,7.77,251.41,251.12,23.776884]
[1737648229133,7.77,251.41,251.18,20.0]
[1737648229967,7.77,251.41,251.22,20.0]
[1737648230273,7.77,251.41,251.31,20.0]
[1737648230570,53.83315861,251.4,251.18,1.54055947]
[1737648230742,30.05627461,251.34,251.03,49.5039]
[1737648230941,30.05627461,251.25,251.03,42.98]
[1737648231140,30.05627461,251.31,251.03,42.98]
[1737648231353,6.4963,251.33,251.03,42.98]
[1737648231567,6.4963,251.33,251.04,23.776884]
[1737648231747,6.4963,251.33,251.06,20.0]
[1737648231948,6.4963,251.33,251.03,43.98]
[1737648232261,23.776884,251.31,251.03,43.98]
[1737648232449,53.83315861,251.31,251.03,58.904314]
[1737648232641,53.83315861,251.31,251.03,42.98]
[1737648233262,1.6011,251.32,251.06,23.776884]
[1737648233450,1.6011,251.32,251.22,20.0]